Workbook

Sheet Sheet1
A1: 附件4：
A2: 2020年-2021学年（第二学期）龙华区幼儿园保教人员长期从教津贴审核结果汇总表（公示稿）
A3: 总序号 | B3: 街道 | C3: 幼儿园序号 | D3: 幼儿园名称 | E3: 姓名 | F3: 性别 | G3: 资格证类别 | H3: 现任岗位 | I3: 所在班级 | J3: 可领津贴年限(年） | K3: 留任/转入/转出/离职 | L3: 核定全年可领取津贴金额 （元） | M3: 本学期可领取津贴金额 （元） | N3: 从教津贴总额（元）
A4: 1 | B4: 观湖1 | C4: 1 | D4: 深圳市龙华区第三幼儿园 | E4: 郭映霞 | F4: 女 | G4: 教师资格证 | H4: 园长 | I4: 无 | J4: 10 | K4: 留任 | L4: 24000 | M4: 12000 | N4: 194400
A5: 2 | C5: 2 | D5: 深圳市龙华区第三幼儿园 | E5: 罗小娟 | F5: 女 | G5: 教师资格证 | H5: 后勤主任 | I5: 无 | J5: 10 | K5: 留任 | L5: 24000 | M5: 12000
A6: 3 | C6: 3 | D6: 深圳市龙华区第三幼儿园 | E6: 陈杼楠 | F6: 女 | G6: 教师资格证 | H6: 后勤副园长 | I6: 无 | J6: 10 | K6: 留任 | L6: 24000 | M6: 12000
A7: 4 | C7: 4 | D7: 深圳市龙华区第三幼儿园 | E7: 吴冰芳 | F7: 女 | G7: 教师资格证 | H7: 专任教师 | I7: 大二班 | J7: 10 | K7: 留任 | L7: 24000 | M7: 12000
A8: 5 | C8: 5 | D8: 深圳市龙华区第三幼儿园 | E8: 温雨娇 | F8: 女 | G8: 教师资格证 | H8: 专任教师 | I8: 小四班 | J8: 10 | K8: 留任 | L8: 24000 | M8: 12000
A9: 6 | C9: 6 | D9: 深圳市龙华区第三幼儿园 | E9: 蔡佩玲 | F9: 女 | G9: 教师资格证 | H9: 专任教师 | I9: 小二班 | J9: 9 | K9: 留任 | L9: 21600 | M9: 10800
A10: 7 | C10: 7 | D10: 深圳市龙华区第三幼儿园 | E10: 黄苑 | F10: 女 | G10: 教师资格证 | H10: 专任教师 | I10: 大四班 | J10: 8 | K10: 留任 | L10: 19200 | M10: 9600
A11: 8 | C11: 8 | D11: 深圳市龙华区第三幼儿园 | E11: 梁凤 | F11: 女 | G11: 教师资格证 | H11: 专任教师 | I11: 中三班 | J11: 8 | K11: 留任 | L11: 19200 | M11: 9600
A12: 9 | C12: 9 | D12: 深圳市龙华区第三幼儿园 | E12: 陈美莲 | F12: 女 | G12: 保健人员上岗培训合格证 | H12: 保健医生 | I12: 无 | J12: 7 | K12: 留任 | L12: 16800 | M12: 8400
A13: 10 | C13: 10 | D13: 深圳市龙华区第三幼儿园 | E13: 黄燕美 | F13: 女 | G13: 教师资格证 | H13: 专任教师 | I13: 大二班 | J13: 6 | K13: 留任 | L13: 14400 | M13: 7200
A14: 11 | C14: 11 | D14: 深圳市龙华区第三幼儿园 | E14: 廖婉媛 | F14: 女 | G14: 教师资格证 | H14: 专任教师 | I14: 中四班 | J14: 5 | K14: 留任 | L14: 12000 | M14: 6000
A15: 12 | C15: 12 | D15: 深圳市龙华区第三幼儿园 | E15: 甘梅花 | F15: 女 | G15: 教师资格证 | H15: 专任教师 | I15: 中二班 | J15: 5 | K15: 留任 | L15: 12000 | M15: 6000
A16: 13 | C16: 13 | D16: 深圳市龙华区第三幼儿园 | E16: 陈凯洁 | F16: 女 | G16: 教师资格证 | H16: 专任教师 | I16: 大四班 | J16: 4 | K16: 留任 | L16: 9600 | M16: 4800
A17: 14 | C17: 14 | D17: 深圳市龙华区第三幼儿园 | E17: 刘翠琪 | F17: 女 | G17: 教师资格证 | H17: 专任教师 | I17: 大一班 | J17: 4 | K17: 留任 | L17: 9600 | M17: 4800
A18: 15 | C18: 15 | D18: 深圳市龙华区第三幼儿园 | E18: 洪凯珍 | F18: 女 | G18: 保育员职业技能等级证 | H18: 保育员 | I18: 小二班 | J18: 3 | K18: 留任 | L18: 7200 | M18: 3600
A19: 16 | C19: 16 | D19: 深圳市龙华区第三幼儿园 | E19: 冯瑶 | F19: 女 | G19: 教师资格证 | H19: 保育员 | I19: 小三班 | J19: 3 | K19: 留任 | L19: 7200 | M19: 3600
A20: 17 | C20: 17 | D20: 深圳市龙华区第三幼儿园 | E20: 王鑫茹 | F20: 女 | G20: 教师资格证 | H20: 专任教师 | I20: 小一班 | J20: 3 | K20: 留任 | L20: 7200 | M20: 3600
A21: 18 | C21: 18 | D21: 深圳市龙华区第三幼儿园 | E21: 林敏 | F21: 女 | G21: 教师资格证 | H21: 专任教师 | I21: 大一班 | J21: 3 | K21: 留任 | L21: 7200 | M21: 3600
A22: 19 | C22: 19 | D22: 深圳市龙华区第三幼儿园 | E22: 马芬 | F22: 女 | G22: 教师资格证 | H22: 保教主任 | I22: 无 | J22: 3 | K22: 留任 | L22: 7200 | M22: 3600
A23: 20 | C23: 20 | D23: 深圳市龙华区第三幼儿园 | E23: 蒋沁伶 | F23: 女 | G23: 教师资格证 | H23: 专任教师 | I23: 小三班 | J23: 3 | K23: 留任 | L23: 7200 | M23: 3600
A24: 21 | C24: 21 | D24: 深圳市龙华区第三幼儿园 | E24: 芦莉 | F24: 女 | G24: 教师资格证 | H24: 专任教师 | I24: 中一班 | J24: 2 | K24: 留任 | L24: 4800 | M24: 2400
A25: 22 | C25: 22 | D25: 深圳市龙华区第三幼儿园 | E25: 谢晓丹 | F25: 女 | G25: 教师资格证 | H25: 专任教师 | I25: 大三班 | J25: 2 | K25: 留任 | L25: 4800 | M25: 2400
A26: 23 | C26: 23 | D26: 深圳市龙华区第三幼儿园 | E26: 李珊珊 | F26: 女 | G26: 保育员职业技能等级证 | H26: 保育员 | I26: 小四班 | J26: 2 | K26: 留任 | L26: 4800 | M26: 2400
A27: 24 | C27: 24 | D27: 深圳市龙华区第三幼儿园 | E27: 郭伟珠 | F27: 女 | G27: 保育员职业技能等级证 | H27: 保育员 | I27: 大三班 | J27: 2 | K27: 留任 | L27: 4800 | M27: 2400
A28: 25 | C28: 25 | D28: 深圳市龙华区第三幼儿园 | E28: 陈敏 | F28: 女 | G28: 教师资格证 | H28: 保育员 | I28: 小一班 | J28: 2 | K28: 留任 | L28: 4800 | M28: 2400
A29: 26 | C29: 26 | D29: 深圳市龙华区第三幼儿园 | E29: 邱文森 | F29: 男 | G29: 教师资格证 | H29: 安全主任 | I29: 无 | J29: 2 | K29: 留任 | L29: 4800 | M29: 2400
A30: 27 | C30: 27 | D30: 深圳市龙华区第三幼儿园 | E30: 张燕杰 | F30: 女 | G30: 教师资格证 | H30: 干事助理 | I30: 无 | J30: 10 | K30: 留任 | L30: 24000 | M30: 12000
A31: 28 | C31: 28 | D31: 深圳市龙华区第三幼儿园 | E31: 张艳 | F31: 女 | G31: 教师资格证 | H31: 教研员 | I31: 无 | J31: 10 | K31: 留任 | L31: 24000 | M31: 12000
A32: 29 | C32: 29 | D32: 深圳市龙华区第三幼儿园 | E32: 陈施廷 | F32: 女 | G32: 教师资格证 | H32: 专任教师 | I32: 小三班 | J32: 1 | K32: 留任 | L32: 2400 | M32: 1200
A33: 30 | C33: 30 | D33: 深圳市龙华区第三幼儿园 | E33: 毛凯艺 | F33: 女 | G33: 教师资格证 | H33: 专任教师 | I33: 小四班 | J33: 1 | K33: 留任 | L33: 2400 | M33: 1200
A34: 31 | C34: 31 | D34: 深圳市龙华区第三幼儿园 | E34: 徐嘉琪 | F34: 女 | G34: 教师资格证 | H34: 专任教师 | I34: 中二班 | J34: 1 | K34: 留任 | L34: 2400 | M34: 1200
A35: 32 | C35: 32 | D35: 深圳市龙华区第三幼儿园 | E35: 洪敏仪 | F35: 女 | G35: 教师资格证 | H35: 专任教师 | I35: 中四班 | J35: 1 | K35: 留任 | L35: 2400 | M35: 1200
A36: 33 | C36: 33 | D36: 深圳市龙华区第三幼儿园 | E36: 沈玉妍 | F36: 女 | G36: 教师资格证 | H36: 专任教师 | I36: 大三班 | J36: 1 | K36: 留任 | L36: 2400 | M36: 1200
A37: 34 | C37: 34 | D37: 深圳市龙华区第三幼儿园 | E37: 陈丹妮 | F37: 女 | G37: 保育员职业技能等级证 | H37: 保育员 | I37: 大一班 | J37: 1 | K37: 留任 | L37: 2400 | M37: 1200
A38: 35 | C38: 1 | D38: 深圳市龙华区樟坑径幼儿园 | E38: 张红花 | F38: 女 | G38: 教师资格证 | H38: 副园长 | I38: 无 | J38: 10 | K38: 留任 | L38: 24000 | M38: 12000 | N38: 121200
A39: 36 | C39: 2 | D39: 深圳市龙华区樟坑径幼儿园 | E39: 李丽情 | F39: 女 | G39: 教师资格证 | H39: 园长 | I39: 无 | J39: 10 | K39: 留任 | L39: 24000 | M39: 12000
A40: 37 | C40: 3 | D40: 深圳市龙华区樟坑径幼儿园 | E40: 张红果 | F40: 女 | G40: 教师资格证 | H40: 教师 | I40: 大一班 | J40: 10 | K40: 留任 | L40: 24000 | M40: 12000
A41: 38 | C41: 4 | D41: 深圳市龙华区樟坑径幼儿园 | E41: 张红梅 | F41: 女 | G41: 教师资格证 | H41: 教师 | I41: 中三班 | J41: 10 | K41: 留任 | L41: 24000 | M41: 12000
A42: 39 | C42: 5 | D42: 深圳市龙华区樟坑径幼儿园 | E42: 徐丽廷 | F42: 女 | G42: 教师资格证 | H42: 副园长 | I42: 无 | J42: 10 | K42: 留任 | L42: 24000 | M42: 12000
A43: 40 | C43: 6 | D43: 深圳市龙华区樟坑径幼儿园 | E43: 张丽虾 | F43: 女 | G43: 保健人员上岗培训合格证 | H43: 园医 | I43: 无 | J43: 10 | K43: 留任 | L43: 24000 | M43: 12000
A44: 41 | C44: 7 | D44: 深圳市龙华区樟坑径幼儿园 | E44: 邹燕华 | F44: 女 | G44: 教师资格证 | H44: 教师 | I44: 大一班 | J44: 9 | K44: 留任 | L44: 21600 | M44: 10800
A45: 42 | C45: 8 | D45: 深圳市龙华区樟坑径幼儿园 | E45: 曾云珊 | F45: 女 | G45: 教师资格证 | H45: 教师 | I45: 中三班 | J45: 8 | K45: 留任 | L45: 19200 | M45: 9600
A46: 43 | C46: 9 | D46: 深圳市龙华区樟坑径幼儿园 | E46: 缪丽容 | F46: 女 | G46: 教师资格证 | H46: 教师 | I46: 中二班 | J46: 7 | K46: 留任 | L46: 16800 | M46: 8400
A47: 44 | C47: 10 | D47: 深圳市龙华区樟坑径幼儿园 | E47: 刘小兰 | F47: 女 | G47: 教师资格证 | H47: 教师 | I47: 大二班 | J47: 3 | K47: 留任 | L47: 7200 | M47: 3600
A48: 45 | C48: 11 | D48: 深圳市龙华区樟坑径幼儿园 | E48: 伍文萍 | F48: 女 | G48: 教师资格证 | H48: 教师 | I48: 大四班 | J48: 3 | K48: 留任 | L48: 7200 | M48: 3600
A49: 46 | C49: 12 | D49: 深圳市龙华区樟坑径幼儿园 | E49: 张丹丹 | F49: 女 | G49: 保育员职业技能等级证 | H49: 保育员 | I49: 小一班 | J49: 3 | K49: 留任 | L49: 7200 | M49: 3600
A50: 47 | C50: 13 | D50: 深圳市龙华区樟坑径幼儿园 | E50: 谭日葵 | F50: 女 | G50: 保育员职业技能等级证 | H50: 保育员 | I50: 小二班 | J50: 2 | K50: 留任 | L50: 4800 | M50: 2400
A51: 48 | C51: 14 | D51: 深圳市龙华区樟坑径幼儿园 | E51: 刘惠丽 | F51: 女 | G51: 教师资格证 | H51: 教师 | I51: 大二班 | J51: 2 | K51: 留任 | L51: 4800 | M51: 2400
A52: 49 | C52: 15 | D52: 深圳市龙华区樟坑径幼儿园 | E52: 曾艳 | F52: 女 | G52: 教师资格证 | H52: 教师 | I52: 中一班 | J52: 1 | K52: 留任 | L52: 2400 | M52: 1200
A53: 50 | C53: 16 | D53: 深圳市龙华区樟坑径幼儿园 | E53: 罗开英 | F53: 女 | G53: 教师资格证 | H53: 教师 | I53: 中一班 | J53: 1 | K53: 留任 | L53: 2400 | M53: 1200
A54: 51 | C54: 17 | D54: 深圳市龙华区樟坑径幼儿园 | E54: 雷英凤 | F54: 女 | G54: 教师资格证 | H54: 教师 | I54: 小一班 | J54: 1 | K54: 留任 | L54: 2400 | M54: 1200
A55: 52 | C55: 18 | D55: 深圳市龙华区樟坑径幼儿园 | E55: 刘鸿燕 | F55: 女 | G55: 保育员职业技能等级证 | H55: 保育员 | I55: 大二班 | J55: 1 | K55: 留任 | L55: 2400 | M55: 1200
A56: 53 | C56: 1 | D56: 深圳市龙华区曙光幼儿园 | E56: 陈华英 | F56: 女 | G56: 教师资格证 | H56: 教学副园长 | J56: 10 | K56: 留任 | L56: 24000 | M56: 12000 | N56: 92400
A57: 54 | C57: 2 | D57: 深圳市龙华区曙光幼儿园 | E57: 陈晓 | F57: 女 | G57: 教师资格证 | H57: 专任教师 | I57: 大三班 | J57: 10 | K57: 留任 | L57: 24000 | M57: 12000
A58: 55 | C58: 3 | D58: 深圳市龙华区曙光幼儿园 | E58: 潘德燕 | F58: 女 | G58: 保育员职业技能等级证 | H58: 保育员 | I58: 大二班 | J58: 10 | K58: 留任 | L58: 24000 | M58: 12000
A59: 56 | C59: 4 | D59: 深圳市龙华区曙光幼儿园 | E59: 董长秀 | F59: 女 | G59: 教师资格证 | H59: 专任教师 | I59: 中二班 | J59: 9 | K59: 留任 | L59: 21600 | M59: 10800
A60: 57 | C60: 5 | D60: 深圳市龙华区曙光幼儿园 | E60: 李友娣 | F60: 女 | G60: 教师资格证 | H60: 专任教师 | I60: 大一班 | J60: 6 | K60: 留任 | L60: 14400 | M60: 7200
A61: 58 | C61: 6 | D61: 深圳市龙华区曙光幼儿园 | E61: 彭燕娜 | F61: 女 | G61: 教师资格证 | H61: 专任教师 | I61: 大三班 | J61: 5 | K61: 留任 | L61: 12000 | M61: 6000
A62: 59 | C62: 7 | D62: 深圳市龙华区曙光幼儿园 | E62: 刁浩敏 | F62: 女 | G62: 保育员职业技能等级证 | H62: 保育员 | I62: 中一班 | J62: 5 | K62: 留任 | L62: 12000 | M62: 6000
A63: 60 | C63: 8 | D63: 深圳市龙华区曙光幼儿园 | E63: 胡艳林 | F63: 女 | G63: 教师资格证 | H63: 专任教师 | I63: 小一班 | J63: 5 | K63: 留任 | L63: 12000 | M63: 6000
A64: 61 | C64: 9 | D64: 深圳市龙华区曙光幼儿园 | E64: 王丽平 | F64: 女 | G64: 教师资格证 | H64: 专任教师 | I64: 中一班 | J64: 5 | K64: 留任 | L64: 12000 | M64: 6000
A65: 62 | C65: 10 | D65: 深圳市龙华区曙光幼儿园 | E65: 邓秀芬 | F65: 女 | G65: 保健人员上岗培训合格证 | H65: 保健医生 | J65: 5 | K65: 留任 | L65: 12000 | M65: 6000
A66: 63 | C66: 11 | D66: 深圳市龙华区曙光幼儿园 | E66: 黄艳鲜 | F66: 女 | G66: 保健人员上岗培训合格证 | H66: 保健医生 | J66: 3 | K66: 留任 | L66: 7200 | M66: 3600
A67: 64 | C67: 12 | D67: 深圳市龙华区曙光幼儿园 | E67: 古丽棵 | F67: 女 | G67: 保育员职业技能等级证 | H67: 保育员 | I67: 大一班 | J67: 2 | K67: 留任 | L67: 4800 | M67: 2400
A68: 65 | C68: 13 | D68: 深圳市龙华区曙光幼儿园 | E68: 黄小雪 | F68: 女 | G68: 保育员职业技能等级证 | H68: 保育员 | I68: 小一班 | J68: 1 | K68: 留任 | L68: 2400 | M68: 1200
A69: 66 | C69: 14 | D69: 深圳市龙华区曙光幼儿园 | E69: 刘芳 | F69: 女 | G69: 保育员职业技能等级证 | H69: 保育员 | I69: 中二班 | J69: 1 | K69: 留任 | L69: 2400 | M69: 1200
A70: 67 | C70: 1 | D70: 深圳市龙华区教科院附属小学格澜幼儿园 | E70: 张萍 | F70: 女 | G70: 教师资格证 | H70: 教学副园长 | I70: 无 | J70: 10 | K70: 留任 | L70: 24000 | M70: 12000 | N70: 153600
A71: 68 | C71: 2 | D71: 深圳市龙华区教科院附属小学格澜幼儿园 | E71: 黄丽 | F71: 女 | G71: 保育员上岗培训合格证 | H71: 保育员 | I71: 大3班 | J71: 10 | K71: 留任 | L71: 24000 | M71: 12000
A72: 69 | C72: 3 | D72: 深圳市龙华区教科院附属小学格澜幼儿园 | E72: 陈燕芳 | F72: 女 | G72: 教师资格证 | H72: 后勤主任 | I72: 无 | J72: 10 | K72: 留任 | L72: 24000 | M72: 12000
A73: 70 | C73: 4 | D73: 深圳市龙华区教科院附属小学格澜幼儿园 | E73: 张柳 | F73: 女 | G73: 教师资格证 | H73: 专任教师 | I73: 小3班 | J73: 9 | K73: 留任 | L73: 21600 | M73: 10800
A74: 71 | C74: 5 | D74: 深圳市龙华区教科院附属小学格澜幼儿园 | E74: 邓瑞婷 | F74: 女 | G74: 教师资格证 | H74: 专任教师 | I74: 中2班 | J74: 9 | K74: 留任 | L74: 21600 | M74: 10800
A75: 72 | C75: 6 | D75: 深圳市龙华区教科院附属小学格澜幼儿园 | E75: 牛荣兰 | F75: 女 | G75: 教师资格证 | H75: 专任教师 | I75: 中4班 | J75: 7 | K75: 留任 | L75: 16800 | M75: 8400
A76: 73 | C76: 7 | D76: 深圳市龙华区教科院附属小学格澜幼儿园 | E76: 贺健平 | F76: 女 | G76: 教师资格证 | H76: 专任教师 | I76: 小1班 | J76: 5 | K76: 留任 | L76: 12000 | M76: 6000
A77: 74 | C77: 8 | D77: 深圳市龙华区教科院附属小学格澜幼儿园 | E77: 胡燕舞 | F77: 女 | G77: 保育员职业技能等级证 | H77: 保育员 | I77: 大1班 | J77: 5 | K77: 留任 | L77: 12000 | M77: 6000
A78: 75 | C78: 9 | D78: 深圳市龙华区教科院附属小学格澜幼儿园 | E78: 陈金凤 | F78: 女 | G78: 保育员职业技能等级证 | H78: 保育员 | I78: 小1班 | J78: 5 | K78: 留任 | L78: 12000 | M78: 6000
A79: 76 | C79: 10 | D79: 深圳市龙华区教科院附属小学格澜幼儿园 | E79: 黄雪容 | F79: 女 | G79: 保育员职业技能等级证 | H79: 保育员 | I79: 小2班 | J79: 5 | K79: 留任 | L79: 12000 | M79: 6000
A80: 77 | C80: 11 | D80: 深圳市龙华区教科院附属小学格澜幼儿园 | E80: 刘艳艳 | F80: 女 | G80: 保育员职业技能等级证 | H80: 保育员 | I80: 小2班 | J80: 4 | K80: 留任 | L80: 9600 | M80: 4800
A81: 78 | C81: 12 | D81: 深圳市龙华区教科院附属小学格澜幼儿园 | E81: 段风林 | F81: 女 | G81: 教师资格证 | H81: 专任教师 | I81: 大2班 | J81: 3 | K81: 留任 | L81: 7200 | M81: 3600
A82: 79 | C82: 13 | D82: 深圳市龙华区教科院附属小学格澜幼儿园 | E82: 李灵 | F82: 女 | G82: 教师资格证 | H82: 专任教师 | I82: 小2班 | J82: 3 | K82: 留任 | L82: 7200 | M82: 3600
A83: 80 | C83: 14 | D83: 深圳市龙华区教科院附属小学格澜幼儿园 | E83: 李小华 | F83: 女 | G83: 保育员职业技能等级证 | H83: 保育员 | I83: 小3班 | J83: 3 | K83: 留任 | L83: 7200 | M83: 3600
A84: 81 | C84: 15 | D84: 深圳市龙华区教科院附属小学格澜幼儿园 | E84: 李美梅 | F84: 女 | G84: 教师资格证 | H84: 专任教师 | I84: 中3班 | J84: 10 | K84: 留任 | L84: 24000 | M84: 12000
A85: 82 | C85: 16 | D85: 深圳市龙华区教科院附属小学格澜幼儿园 | E85: 吴柳燕 | F85: 女 | G85: 教师资格证 | H85: 专任教师 | I85: 大1班 | J85: 3 | K85: 留任 | L85: 7200 | M85: 3600
A86: 83 | C86: 17 | D86: 深圳市龙华区教科院附属小学格澜幼儿园 | E86: 邓文婷 | F86: 女 | G86: 教师资格证 | H86: 专任教师 | I86: 无 | J86: 3 | K86: 留任 | L86: 7200 | M86: 3600
A87: 84 | C87: 18 | D87: 深圳市龙华区教科院附属小学格澜幼儿园 | E87: 吴宇宁 | F87: 女 | G87: 教师资格证 | H87: 专任教师 | I87: 小3班 | J87: 3 | K87: 留任 | L87: 7200 | M87: 3600
A88: 85 | C88: 19 | D88: 深圳市龙华区教科院附属小学格澜幼儿园 | E88: 韦仁香 | F88: 女 | G88: 教师资格证 | H88: 专任教师 | I88: 中1班 | J88: 2 | K88: 留任 | L88: 4800 | M88: 2400
A89: 86 | C89: 20 | D89: 深圳市龙华区教科院附属小学格澜幼儿园 | E89: 梁翠芳 | F89: 女 | G89: 教师资格证 | H89: 专任教师 | I89: 中1班 | J89: 2 | K89: 留任 | L89: 4800 | M89: 2400
A90: 87 | C90: 21 | D90: 深圳市龙华区教科院附属小学格澜幼儿园 | E90: 张晓敏 | F90: 女 | G90: 教师资格证 | H90: 专任教师 | I90: 大1班 | J90: 2 | K90: 留任 | L90: 4800 | M90: 2400
A91: 88 | C91: 22 | D91: 深圳市龙华区教科院附属小学格澜幼儿园 | E91: 陈玲燕 | F91: 女 | G91: 教师资格证 | H91: 专任教师 | I91: 无 | J91: 2 | K91: 留任 | L91: 4800 | M91: 2400
A92: 89 | C92: 23 | D92: 深圳市龙华区教科院附属小学格澜幼儿园 | E92: 周稳子 | F92: 女 | G92: 教师资格证 | H92: 专任教师 | I92: 大3班 | J92: 2 | K92: 留任 | L92: 4800 | M92: 2400
A93: 90 | C93: 24 | D93: 深圳市龙华区教科院附属小学格澜幼儿园 | E93: 陈美兰 | F93: 女 | G93: 保育员职业技能等级证 | H93: 保育员 | I93: 中3班 | J93: 2 | K93: 留任 | L93: 4800 | M93: 2400
A94: 91 | C94: 25 | D94: 深圳市龙华区教科院附属小学格澜幼儿园 | E94: 侯柏君 | F94: 女 | G94: 保育员职业技能等级证 | H94: 保育员 | I94: 中1班 | J94: 2 | K94: 留任 | L94: 4800 | M94: 2400
A95: 92 | C95: 26 | D95: 深圳市龙华区教科院附属小学格澜幼儿园 | E95: 吴玉丽 | F95: 女 | G95: 教师资格证 | H95: 专任教师 | I95: 大3班 | J95: 1 | K95: 留任 | L95: 2400 | M95: 1200
A96: 93 | C96: 27 | D96: 深圳市龙华区教科院附属小学格澜幼儿园 | E96: 霍凤平 | F96: 女 | G96: 保育员职业技能等级证 | H96: 保育员 | I96: 中2班 | J96: 1 | K96: 留任 | L96: 2400 | M96: 1200
A97: 94 | C97: 28 | D97: 深圳市龙华区教科院附属小学格澜幼儿园 | E97: 李奇珍 | F97: 女 | G97: 保育员职业技能等级证 | H97: 保育员 | I97: 中4班 | J97: 3 | K97: 留任 | L97: 7200 | M97: 3600
A98: 95 | C98: 29 | D98: 深圳市龙华区教科院附属小学格澜幼儿园 | E98: 宋晓丽 | F98: 女 | G98: 保育员职业技能等级证 | H98: 保育员 | I98: 大2班 | J98: 1 | K98: 留任 | L98: 2400 | M98: 1200
A99: 96 | C99: 30 | D99: 深圳市龙华区教科院附属小学格澜幼儿园 | E99: 丁小丽 | F99: 女 | G99: 教师资格证 | H99: 专任教师 | I99: 中4班 | J99: 1 | K99: 留任 | L99: 2400 | M99: 1200
A100: 97 | C100: 1 | D100: 深圳市龙华区宝文幼儿园 | E100: 彭素杯 | F100: 女 | G100: 教师资格证 | H100: 后勤副园长 | I100: 无 | J100: 9 | K100: 留任 | L100: 21600 | M100: 10800 | N100: 49200
A101: 98 | C101: 2 | D101: 深圳市龙华区宝文幼儿园 | E101: 王爱琴 | F101: 女 | G101: 教师资格证 | H101: 专任教师 | I101: 2 | J101: 5 | K101: 留任 | L101: 12000 | M101: 6000
A102: 99 | C102: 3 | D102: 深圳市龙华区宝文幼儿园 | E102: 彭美玉 | F102: 女 | G102: 教师资格证 | H102: 专任教师 | I102: 2 | J102: 4 | K102: 留任 | L102: 9600 | M102: 4800
A103: 100 | C103: 4 | D103: 深圳市龙华区宝文幼儿园 | E103: 陈炳娜 | F103: 女 | G103: 保育员职业技能等级证 | H103: 保育员 | I103: 1 | J103: 4 | K103: 留任 | L103: 9600 | M103: 4800
A104: 101 | C104: 5 | D104: 深圳市龙华区宝文幼儿园 | E104: 刘启珍 | F104: 女 | G104: 保育员上岗培训合格证 | H104: 保育员 | I104: 1 | J104: 3 | K104: 留任 | L104: 7200 | M104: 3600
A105: 102 | C105: 6 | D105: 深圳市龙华区宝文幼儿园 | E105: 钟琳 | F105: 女 | G105: 教师资格证 | H105: 专任教师 | I105: 2 | J105: 2 | K105: 留任 | L105: 4800 | M105: 2400
A106: 103 | C106: 7 | D106: 深圳市龙华区宝文幼儿园 | E106: 丘小红 | F106: 女 | G106: 教师资格证 | H106: 专任教师 | I106: 1 | J106: 2 | K106: 留任 | L106: 4800 | M106: 2400
A107: 104 | C107: 8 | D107: 深圳市龙华区宝文幼儿园 | E107: 司平平 | F107: 女 | G107: 教师资格证 | H107: 专任教师 | I107: 1 | J107: 2 | K107: 留任 | L107: 4800 | M107: 2400
A108: 105 | C108: 9 | D108: 深圳市龙华区宝文幼儿园 | E108: 黄伟秀 | F108: 女 | G108: 教师资格证 | H108: 园长 | I108: 无 | J108: 10 | K108: 留任 | L108: 24000 | M108: 12000
A109: 106 | C109: 1 | D109: 深圳市龙华区清湖小学附属澜园幼儿园 | E109: 张丽霞 | F109: 女 | G109: 教师资格证 | H109: 园长 | I109: 无 | J109: 10 | K109: 留任 | L109: 24000 | M109: 12000 | N109: 145200
A110: 107 | C110: 2 | D110: 深圳市龙华区清湖小学附属澜园幼儿园 | E110: 钟秀发 | F110: 女 | G110: 教师资格证 | H110: 后勤副园长 | I110: 无 | J110: 10 | K110: 留任 | L110: 24000 | M110: 12000
A111: 108 | C111: 3 | D111: 深圳市龙华区清湖小学附属澜园幼儿园 | E111: 邱小兰 | F111: 女 | G111: 教师资格证 | H111: 专任教师 | I111: 中三班 | J111: 8 | K111: 留任 | L111: 19200 | M111: 9600
A112: 109 | C112: 4 | D112: 深圳市龙华区清湖小学附属澜园幼儿园 | E112: 彭勇娟 | F112: 女 | G112: 教师资格证 | H112: 专任教师 | I112: 小一班 | J112: 7 | K112: 留任 | L112: 16800 | M112: 8400
A113: 110 | C113: 5 | D113: 深圳市龙华区清湖小学附属澜园幼儿园 | E113: 林兰芳 | F113: 女 | G113: 保育员职业技能等级证 | H113: 保育员 | I113: 小一班 | J113: 6 | K113: 留任 | L113: 14400 | M113: 7200
A114: 111 | C114: 6 | D114: 深圳市龙华区清湖小学附属澜园幼儿园 | E114: 王嘉琳 | F114: 女 | G114: 教师资格证 | H114: 专任教师 | I114: 大三班 | J114: 5 | K114: 留任 | L114: 12000 | M114: 6000
A115: 112 | C115: 7 | D115: 深圳市龙华区清湖小学附属澜园幼儿园 | E115: 肖诗琦 | F115: 女 | G115: 教师资格证 | H115: 专任教师 | I115: 小一班 | J115: 4 | K115: 留任 | L115: 9600 | M115: 4800
A116: 113 | C116: 8 | D116: 深圳市龙华区清湖小学附属澜园幼儿园 | E116: 杨雪爱 | F116: 女 | G116: 教师资格证 | H116: 专任教师 | I116: 中二班 | J116: 4 | K116: 留任 | L116: 9600 | M116: 4800
A117: 114 | C117: 9 | D117: 深圳市龙华区清湖小学附属澜园幼儿园 | E117: 黄丽容 | F117: 女 | G117: 保育员职业技能等级证 | H117: 保育员 | I117: 小三班 | J117: 4 | K117: 留任 | L117: 9600 | M117: 4800
A118: 115 | C118: 10 | D118: 深圳市龙华区清湖小学附属澜园幼儿园 | E118: 赖惠娥 | F118: 女 | G118: 保育员职业技能等级证 | H118: 保育员 | I118: 中一班 | J118: 4 | K118: 留任 | L118: 9600 | M118: 4800
A119: 116 | C119: 11 | D119: 深圳市龙华区清湖小学附属澜园幼儿园 | E119: 陈婉妃 | F119: 女 | G119: 保育员职业技能等级证 | H119: 保育员 | I119: 中二班 | J119: 3 | K119: 留任 | L119: 7200 | M119: 3600
A120: 117 | C120: 12 | D120: 深圳市龙华区清湖小学附属澜园幼儿园 | E120: 石贵英 | F120: 女 | G120: 教师资格证 | H120: 专任教师 | I120: 大一班 | J120: 3 | K120: 留任 | L120: 7200 | M120: 3600
A121: 118 | C121: 13 | D121: 深圳市龙华区清湖小学附属澜园幼儿园 | E121: 石琼 | F121: 女 | G121: 保健人员上岗培训合格证 | H121: 保健医生 | I121: 无 | J121: 3 | K121: 留任 | L121: 7200 | M121: 3600
A122: 119 | C122: 14 | D122: 深圳市龙华区清湖小学附属澜园幼儿园 | E122: 陈爽绵 | F122: 女 | G122: 教师资格证 | H122: 专任教师 | I122: 大四班 | J122: 6 | K122: 留任 | L122: 14400 | M122: 7200
A123: 120 | C123: 15 | D123: 深圳市龙华区清湖小学附属澜园幼儿园 | E123: 梁小莉 | F123: 女 | G123: 教师资格证 | H123: 专任教师 | I123: 中四班 | J123: 6 | K123: 留任 | L123: 14400 | M123: 7200
A124: 121 | C124: 16 | D124: 深圳市龙华区清湖小学附属澜园幼儿园 | E124: 叶如婷 | F124: 女 | G124: 保育员职业技能等级证 | H124: 保育员 | I124: 中二班 | J124: 2 | K124: 留任 | L124: 4800 | M124: 2400
A125: 122 | C125: 17 | D125: 深圳市龙华区清湖小学附属澜园幼儿园 | E125: 朱移招 | F125: 女 | G125: 保健人员上岗培训合格证 | H125: 保健医生 | I125: 无 | J125: 10 | K125: 留任 | L125: 24000 | M125: 12000
A126: 123 | C126: 18 | D126: 深圳市龙华区清湖小学附属澜园幼儿园 | E126: 滕秋莲 | F126: 女 | G126: 教师资格证 | H126: 专任教师 | I126: 小二班 | J126: 4 | K126: 留任 | L126: 9600 | M126: 4800
A127: 124 | C127: 19 | D127: 深圳市龙华区清湖小学附属澜园幼儿园 | E127: 骆怡 | F127: 女 | G127: 教师资格证 | H127: 专任教师 | I127: 小四班 | J127: 1 | K127: 留任 | L127: 2400 | M127: 1200
A128: 125 | C128: 20 | D128: 深圳市龙华区清湖小学附属澜园幼儿园 | E128: 温永华 | F128: 女 | G128: 教师资格证 | H128: 教学副园长 | I128: 无 | J128: 10 | K128: 留任 | L128: 24000 | M128: 12000
A129: 126 | C129: 21 | D129: 深圳市龙华区清湖小学附属澜园幼儿园 | E129: 李唐 | F129: 女 | G129: 保育员职业技能等级证 | H129: 保育员 | I129: 大四班 | J129: 1 | K129: 留任 | L129: 2400 | M129: 1200
A130: 127 | C130: 22 | D130: 深圳市龙华区清湖小学附属澜园幼儿园 | E130: 栾玉平 | F130: 女 | G130: 保育员职业技能等级证 | H130: 保育员 | I130: 大一班 | J130: 1 | K130: 留任 | L130: 2400 | M130: 1200
A131: 128 | C131: 23 | D131: 深圳市龙华区清湖小学附属澜园幼儿园 | E131: 吴若琳 | F131: 女 | G131: 教师资格证 | H131: 专任教师 | I131: 小四班 | J131: 7 | K131: 留任 | L131: 16800 | M131: 8400
A132: 129 | C132: 24 | D132: 深圳市龙华区清湖小学附属澜园幼儿园 | E132: 吴娇妹 | F132: 女 | G132: 保育员职业技能等级证 | H132: 保育员 | I132: 中四班 | J132: 1 | K132: 留任 | L132: 2400 | M132: 1200
A133: 130 | C133: 25 | D133: 深圳市龙华区清湖小学附属澜园幼儿园 | E133: 钟丽妹 | F133: 女 | G133: 教师资格证 | H133: 专任教师 | I133: 大二班 | J133: 1 | K133: 留任 | L133: 2400 | M133: 1200
A134: 131 | C134: 1 | D134: 深圳市龙华区第三外国语学校附属卓尔幼儿园 | E134: 李艳 | F134: 女 | G134: 保健人员上岗培训合格证 | H134: 园医 | I134: 无 | J134: 9 | K134: 留任 | L134: 21600 | M134: 10800 | N134: 66000
A135: 132 | C135: 2 | D135: 深圳市龙华区第三外国语学校附属卓尔幼儿园 | E135: 林锦顺 | F135: 女 | G135: 保育员职业技能等级证 | H135: 保育员 | I135: 中一 | J135: 5 | K135: 留任 | L135: 12000 | M135: 6000
A136: 133 | C136: 3 | D136: 深圳市龙华区第三外国语学校附属卓尔幼儿园 | E136: 郭小利 | F136: 女 | G136: 保育员职业技能等级证 | H136: 保育员 | I136: 大四 | J136: 5 | K136: 留任 | L136: 12000 | M136: 6000
A137: 134 | C137: 4 | D137: 深圳市龙华区第三外国语学校附属卓尔幼儿园 | E137: 宋德英 | F137: 女 | G137: 教师资格证 | H137: 教师 | I137: 中二 | J137: 5 | K137: 留任 | L137: 12000 | M137: 6000
A138: 135 | C138: 5 | D138: 深圳市龙华区第三外国语学校附属卓尔幼儿园 | E138: 黄彩珍 | F138: 女 | G138: 教师资格证 | H138: 教师 | I138: 小二 | J138: 2 | K138: 留任 | L138: 4800 | M138: 2400
A139: 136 | C139: 6 | D139: 深圳市龙华区第三外国语学校附属卓尔幼儿园 | E139: 颜月英 | F139: 女 | G139: 保育员职业技能等级证 | H139: 保育员 | I139: 小一 | J139: 2 | K139: 留任 | L139: 4800 | M139: 2400
A140: 137 | C140: 7 | D140: 深圳市龙华区第三外国语学校附属卓尔幼儿园 | E140: 普玉丽 | F140: 女 | G140: 保育员职业技能等级证 | H140: 保育员 | I140: 大二 | J140: 1 | K140: 留任 | L140: 2400 | M140: 1200
A141: 138 | C141: 8 | D141: 深圳市龙华区第三外国语学校附属卓尔幼儿园 | E141: 黄兰芳 | F141: 女 | G141: 保育员职业技能等级证 | H141: 保育员 | I141: 中二 | J141: 6 | K141: 留任 | L141: 14400 | M141: 7200
A142: 139 | C142: 9 | D142: 深圳市龙华区第三外国语学校附属卓尔幼儿园 | E142: 张海莲 | F142: 女 | G142: 教师资格证 | H142: 教学副园长 | I142: 无 | J142: 10 | K142: 转入 | L142: 24000 | M142: 12000
A143: 140 | C143: 10 | D143: 深圳市龙华区第三外国语学校附属卓尔幼儿园 | E143: 宋佳音 | F143: 女 | G143: 教师资格证 | H143: 园长 | I143: 无 | J143: 10 | K143: 转入 | L143: 24000 | M143: 12000
A144: 141 | C144: 1 | D144: 深圳市龙华区大和幼儿园 | E144: 温晓云 | F144: 女 | G144: 教师资格证 | H144: 园长 | I144: 无 | J144: 10 | K144: 留任 | L144: 24000 | M144: 12000 | N144: 115200
A145: 142 | C145: 2 | D145: 深圳市龙华区大和幼儿园 | E145: 刘伟丽 | F145: 女 | G145: 教师资格证 | H145: 专任教师 | I145: 中3班 | J145: 8 | K145: 留任 | L145: 19200 | M145: 9600
A146: 143 | C146: 3 | D146: 深圳市龙华区大和幼儿园 | E146: 贺家燕 | F146: 女 | G146: 教师资格证 | H146: 教研员 | I146: 无 | J146: 7 | K146: 留任 | L146: 16800 | M146: 8400
A147: 144 | C147: 4 | D147: 深圳市龙华区大和幼儿园 | E147: 陈梅兰 | F147: 女 | G147: 保育员上岗培训合格证 | H147: 保育员 | I147: 大3班 | J147: 6 | K147: 留任 | L147: 14400 | M147: 7200
A148: 145 | C148: 5 | D148: 深圳市龙华区大和幼儿园 | E148: 张宝琴 | F148: 女 | G148: 保育员上岗培训合格证 | H148: 保育员 | I148: 小1班 | J148: 6 | K148: 留任 | L148: 14400 | M148: 7200
A149: 146 | C149: 6 | D149: 深圳市龙华区大和幼儿园 | E149: 陆翠凡 | F149: 女 | G149: 保育员上岗培训合格证 | H149: 保育员 | I149: 小2班 | J149: 6 | K149: 留任 | L149: 14400 | M149: 7200
A150: 147 | C150: 7 | D150: 深圳市龙华区大和幼儿园 | E150: 钟力彬 | F150: 女 | G150: 教师资格证 | H150: 安全主任 | I150: 无 | J150: 6 | K150: 留任 | L150: 14400 | M150: 7200
A151: 148 | C151: 8 | D151: 深圳市龙华区大和幼儿园 | E151: 罗燕妮 | F151: 女 | G151: 保育员上岗培训合格证 | H151: 保育员 | I151: 大2班 | J151: 5 | K151: 留任 | L151: 12000 | M151: 6000
A152: 149 | C152: 9 | D152: 深圳市龙华区大和幼儿园 | E152: 陈蝶燕 | F152: 女 | G152: 教师资格证 | H152: 保教主任 | I152: 无 | J152: 5 | K152: 留任 | L152: 12000 | M152: 6000
A153: 150 | C153: 10 | D153: 深圳市龙华区大和幼儿园 | E153: 倪晓莉 | F153: 女 | G153: 保育员上岗培训合格证 | H153: 保育员 | I153: 中1班 | J153: 3 | K153: 留任 | L153: 7200 | M153: 3600
A154: 151 | C154: 11 | D154: 深圳市龙华区大和幼儿园 | E154: 陈怡冰 | F154: 女 | G154: 保健人员上岗培训合格证 | H154: 保健员 | I154: 无 | J154: 3 | K154: 留任 | L154: 7200 | M154: 3600
A155: 152 | C155: 12 | D155: 深圳市龙华区大和幼儿园 | E155: 曾亮英 | F155: 女 | G155: 保育员上岗培训合格证 | H155: 保育员 | I155: 大1班 | J155: 2 | K155: 留任 | L155: 4800 | M155: 2400
A156: 153 | C156: 13 | D156: 深圳市龙华区大和幼儿园 | E156: 刘兰英 | F156: 女 | G156: 保育员上岗培训合格证 | H156: 保育员 | I156: 中3班 | J156: 2 | K156: 留任 | L156: 4800 | M156: 2400
A157: 154 | C157: 14 | D157: 深圳市龙华区大和幼儿园 | E157: 钟瑞莲 | F157: 女 | G157: 保育员上岗培训合格证 | H157: 保育员 | I157: 小1班 | J157: 2 | K157: 留任 | L157: 4800 | M157: 2400
A158: 155 | C158: 15 | D158: 深圳市龙华区大和幼儿园 | E158: 陈杏花 | F158: 女 | G158: 教师资格证 | H158: 专任教师 | I158: 大2班 | J158: 2 | K158: 留任 | L158: 4800 | M158: 2400
A159: 156 | C159: 16 | D159: 深圳市龙华区大和幼儿园 | E159: 张承佳 | F159: 女 | G159: 教师资格证 | H159: 专任教师 | I159: 中3班 | J159: 2 | K159: 留任 | L159: 4800 | M159: 2400
A160: 157 | C160: 17 | D160: 深圳市龙华区大和幼儿园 | E160: 陈杏珍 | F160: 女 | G160: 教师资格证 | H160: 专任教师 | I160: 小3班 | J160: 2 | K160: 留任 | L160: 4800 | M160: 2400
A161: 158 | C161: 18 | D161: 深圳市龙华区大和幼儿园 | E161: 蓝丽容 | F161: 女 | G161: 教师资格证 | H161: 专任教师 | I161: 大1班 | J161: 2 | K161: 留任 | L161: 4800 | M161: 2400
A162: 159 | C162: 19 | D162: 深圳市龙华区大和幼儿园 | E162: 林惠环 | F162: 女 | G162: 保育员上岗培训合格证 | H162: 保育员 | I162: 小3班 | J162: 9 | K162: 留任 | L162: 21600 | M162: 10800
A163: 160 | C163: 20 | D163: 深圳市龙华区大和幼儿园 | E163: 张慧敏 | F163: 女 | G163: 教师资格证 | H163: 专任教师 | I163: 中1班 | J163: 3 | K163: 留任 | L163: 7200 | M163: 3600
A164: 161 | C164: 21 | D164: 深圳市龙华区大和幼儿园 | E164: 黄彩珍 | F164: 女 | G164: 教师资格证 | H164: 后勤副园长 | I164: 无 | J164: 1 | K164: 留任 | L164: 2400 | M164: 1200
A165: 162 | C165: 22 | D165: 深圳市龙华区大和幼儿园 | E165: 李丽丹 | F165: 女 | G165: 教师资格证 | H165: 专任教师 | I165: 小1班 | J165: 1 | K165: 留任 | L165: 2400 | M165: 1200
A166: 163 | C166: 23 | D166: 深圳市龙华区大和幼儿园 | E166: 张燕萍 | F166: 女 | G166: 保育员上岗培训合格证 | H166: 保育员 | I166: 中2班 | J166: 1 | K166: 留任 | L166: 2400 | M166: 1200
A167: 164 | C167: 24 | D167: 深圳市龙华区大和幼儿园 | E167: 肖玉花 | F167: 女 | G167: 保育员上岗培训合格证 | H167: 保育员 | I167: 小2班 | J167: 1 | K167: 留任 | L167: 2400 | M167: 1200
A168: 165 | C168: 25 | D168: 深圳市龙华区大和幼儿园 | E168: 钟杏萍 | F168: 女 | G168: 保健人员上岗培训合格证 | H168: 保健员 | I168: 无 | J168: 1 | K168: 留任 | L168: 2400 | M168: 1200
A169: 166 | C169: 1 | D169: 深圳市龙华区鹭湖外国语小学附属招商观园幼儿园 | E169: 曾智英 | F169: 女 | G169: 教师资格证 | H169: 副园长 | I169: 行政 | J169: 10 | K169: 留任 | L169: =(J169*200*12)+0 -> 24000 | M169: =(L169/2)+0 -> 12000 | N169: 121200
A170: 167 | C170: 2 | D170: 深圳市龙华区鹭湖外国语小学附属招商观园幼儿园 | E170: 温小花 | F170: 女 | G170: 教师资格证 | H170: 教师 | I170: 大一班 | J170: 7 | K170: 留任 | L170: 16800 | M170: 8400
A171: 168 | C171: 3 | D171: 深圳市龙华区鹭湖外国语小学附属招商观园幼儿园 | E171: 钟碧芳 | F171: 女 | G171: 教师资格证 | H171: 教师 | I171: 大二班 | J171: 5 | K171: 留任 | L171: 12000 | M171: 6000
A172: 169 | C172: 4 | D172: 深圳市龙华区鹭湖外国语小学附属招商观园幼儿园 | E172: 徐玉娟 | F172: 女 | G172: 卫生保健人员上岗证 | H172: 园医 | I172: 保健室 | J172: 5 | K172: 留任 | L172: 12000 | M172: 6000
A173: 170 | C173: 5 | D173: 深圳市龙华区鹭湖外国语小学附属招商观园幼儿园 | E173: 韦叶 | F173: 女 | G173: 教师资格证 | H173: 教师 | I173: 中五班 | J173: 3 | K173: 留任 | L173: 7200 | M173: 3600
A174: 171 | C174: 6 | D174: 深圳市龙华区鹭湖外国语小学附属招商观园幼儿园 | E174: 耿小银 | F174: 女 | G174: 教师资格证 | H174: 教师 | I174: 大五班 | J174: 3 | K174: 留任 | L174: 7200 | M174: 3600
A175: 172 | C175: 7 | D175: 深圳市龙华区鹭湖外国语小学附属招商观园幼儿园 | E175: 肖志青 | F175: 女 | G175: 保育员上岗证、培训证 | H175: 保育员 | I175: 中一班 | J175: 3 | K175: 留任 | L175: 7200 | M175: 3600
A176: 173 | C176: 8 | D176: 深圳市龙华区鹭湖外国语小学附属招商观园幼儿园 | E176: 郭华平 | F176: 女 | G176: 保育员上岗证、培训证 | H176: 保育员 | I176: 大四班 | J176: 3 | K176: 留任 | L176: 7200 | M176: 3600
A177: 174 | C177: 9 | D177: 深圳市龙华区鹭湖外国语小学附属招商观园幼儿园 | E177: 米春兰 | F177: 女 | G177: 保育员上岗证、培训证 | H177: 保育员 | I177: 中三班 | J177: 3 | K177: 留任 | L177: 7200 | M177: 3600
A178: 175 | C178: 10 | D178: 深圳市龙华区鹭湖外国语小学附属招商观园幼儿园 | E178: 薛晓玲 | F178: 女 | G178: 教师资格证 | H178: 教师 | I178: 小二班 | J178: 5 | K178: 留任 | L178: 12000 | M178: 6000
A179: 176 | C179: 11 | D179: 深圳市龙华区鹭湖外国语小学附属招商观园幼儿园 | E179: 高梦芝 | F179: 女 | G179: 教师资格证 | H179: 教师 | I179: 小一班 | J179: 2 | K179: 留任 | L179: 4800 | M179: 2400
A180: 177 | C180: 12 | D180: 深圳市龙华区鹭湖外国语小学附属招商观园幼儿园 | E180: 彭宇虹 | F180: 女 | G180: 教师资格证 | H180: 教师 | I180: 小五班 | J180: 2 | K180: 留任 | L180: 4800 | M180: 2400
A181: 178 | C181: 13 | D181: 深圳市龙华区鹭湖外国语小学附属招商观园幼儿园 | E181: 刘江兰 | F181: 女 | G181: 保育员上岗证、培训证 | H181: 保育员 | I181: 大五班 | J181: 2 | K181: 留任 | L181: 4800 | M181: 2400
A182: 179 | C182: 14 | D182: 深圳市龙华区鹭湖外国语小学附属招商观园幼儿园 | E182: 黄珊梅 | F182: 女 | G182: 教师资格证 | H182: 园长 | I182: 无 | J182: 10 | K182: 留任 | L182: 24000 | M182: 12000
A183: 180 | C183: 15 | D183: 深圳市龙华区鹭湖外国语小学附属招商观园幼儿园 | E183: 谢密丽 | F183: 女 | G183: 教师资格证 | H183: 后勤主任 | I183: 无 | J183: 10 | K183: 留任 | L183: 24000 | M183: 12000
A184: 181 | C184: 16 | D184: 深圳市龙华区鹭湖外国语小学附属招商观园幼儿园 | E184: 刘小玲 | F184: 女 | G184: 教师资格证 | H184: 专任教师 | I184: 小五班 | J184: 10 | K184: 留任 | L184: 24000 | M184: 12000
A185: 182 | C185: 17 | D185: 深圳市龙华区鹭湖外国语小学附属招商观园幼儿园 | E185: 李晓菲 | F185: 女 | G185: 教师资格证 | H185: 教学副园长 | I185: 无 | J185: 8 | K185: 留任 | L185: 19200 | M185: 9600
A186: 183 | C186: 18 | D186: 深圳市龙华区鹭湖外国语小学附属招商观园幼儿园 | E186: 黄晶晶 | F186: 女 | G186: 教师资格证 | H186: 专任教师 | I186: 中五班 | J186: 8 | K186: 留任 | L186: 19200 | M186: 9600
A187: 184 | C187: 19 | D187: 深圳市龙华区鹭湖外国语小学附属招商观园幼儿园 | E187: 胡佳林 | F187: 女 | G187: 教师资格证 | H187: 教研员 | I187: 无 | J187: 1 | K187: 留任 | L187: 2400 | M187: 1200
A188: 185 | C188: 20 | D188: 深圳市龙华区鹭湖外国语小学附属招商观园幼儿园 | E188: 曾燕翠 | F188: 女 | G188: 保育员上岗证、培训证 | H188: 保育员 | I188: 中二班 | J188: 1 | K188: 留任 | L188: 2400 | M188: 1200
A189: 186 | C189: 1 | D189: 深圳市龙华区外国语学校附属天悦湾幼儿园 | E189: 王锦莉 | F189: 女 | G189: 教师资格证 | H189: 园长 | I189: 无 | J189: 10 | K189: 留任 | L189: 24000 | M189: 12000 | N189: 49200
A190: 187 | C190: 2 | D190: 深圳市龙华区外国语学校附属天悦湾幼儿园 | E190: 林晓霞 | F190: 女 | G190: 教师资格证 | H190: 后勤副园长 | I190: 无 | J190: 9 | K190: 留任 | L190: 21600 | M190: 10800
A191: 188 | C191: 3 | D191: 深圳市龙华区外国语学校附属天悦湾幼儿园 | E191: 高江萍 | F191: 女 | G191: 教师资格证 | H191: 专任教师 | I191: 小1班 | J191: 3 | K191: 留任 | L191: 7200 | M191: 3600
A192: 189 | C192: 4 | D192: 深圳市龙华区外国语学校附属天悦湾幼儿园 | E192: 黄慧芳 | F192: 女 | G192: 教师资格证 | H192: 专任教师 | I192: 大1班 | J192: 3 | K192: 留任 | L192: 7200 | M192: 3600
A193: 190 | C193: 5 | D193: 深圳市龙华区外国语学校附属天悦湾幼儿园 | E193: 揭冰冰 | F193: 女 | G193: 教师资格证 | H193: 专任教师 | I193: 小1班 | J193: 2 | K193: 留任 | L193: 4800 | M193: 2400
A194: 191 | C194: 6 | D194: 深圳市龙华区外国语学校附属天悦湾幼儿园 | E194: 蒲宝芹 | F194: 女 | G194: 教师资格证 | H194: 专任教师 | I194: 小2班 | J194: 1 | K194: 留任 | L194: 2400 | M194: 1200
A195: 192 | C195: 7 | D195: 深圳市龙华区外国语学校附属天悦湾幼儿园 | E195: 许春晓 | F195: 女 | G195: 教师资格证 | H195: 专任教师 | I195: 中1班 | J195: 1 | K195: 留任 | L195: 2400 | M195: 1200
A196: 193 | C196: 8 | D196: 深圳市龙华区外国语学校附属天悦湾幼儿园 | E196: 温华春 | F196: 女 | G196: 教师资格证 | H196: 专任教师 | I196: 大1班 | J196: 1 | K196: 留任 | L196: 2400 | M196: 1200
A197: 194 | C197: 9 | D197: 深圳市龙华区外国语学校附属天悦湾幼儿园 | E197: 王淳 | F197: 女 | G197: 教师资格证 | H197: 专任教师 | I197: 小2班 | J197: 1 | K197: 留任 | L197: 2400 | M197: 1200
A198: 195 | C198: 10 | D198: 深圳市龙华区外国语学校附属天悦湾幼儿园 | E198: 张苑红 | F198: 女 | G198: 保育员上岗培训合格证 | H198: 保育员 | I198: 中1班 | J198: 1 | K198: 留任 | L198: 2400 | M198: 1200
A199: 196 | C199: 11 | D199: 深圳市龙华区外国语学校附属天悦湾幼儿园 | E199: 罗丽君 | F199: 女 | G199: 保健人员上岗培训合格证 | H199: 保健员 | I199: 无 | J199: 7 | K199: 转入 | L199: 16800 | M199: 8400
A200: 197 | C200: 12 | D200: 深圳市龙华区外国语学校附属天悦湾幼儿园 | E200: 王艺潼 | F200: 女 | G200: 教师资格证 | H200: 专任教师 | I200: 无 | J200: 2 | K200: 转入 | L200: 4800 | M200: 2400
... 5180 more rows
